fUSD/lending_fUSD_20240630
["ID","MTS","AMOUNT","RATE_DAILY","PERIOD"]
[330726064,1719739833127,-500.0,0.00013997,3]
[330726065,1719739833142,-500.0,0.00013997,3]
[330726066,1719739833156,-500.0,0.00013997,3]
[330726067,1719739833170,-500.0,0.00013997,3]
[330726068,1719739833186,-500.0,0.00013997,3]
[330726069,1719739833202,-1285.63,0.00013997,3]
[330726070,1719739833217,-500.0,0.00013997,3]
[330726071,1719739833233,-500.0,0.00013997,3]
[330726072,1719739833247,-891.18,0.00013997,3]
[330726073,1719739833262,-500.0,0.00013997,3]
[330726074,1719739833276,-500.0,0.00013997,3]
[330726075,1719739833292,-1034.17,0.00013997,3]
[330726076,1719739833306,-500.0,0.00013997,3]
[330726077,1719739833320,-508.43,0.00013997,3]
[330726078,1719739833336,-500.0,0.00013997,3]
[330726079,1719739833353,-500.0,0.00013997,3]
[330726080,1719739833368,-500.0,0.00013997,3]
[330726081,1719739833383,-500.0,0.00013997,3]
[330726082,1719739833397,-500.0,0.00013997,3]
[330726083,1719739833411,-645.52,0.00013997,3]
[330726084,1719739833426,-877.67,0.00013997,3]
[330726085,1719739833440,-500.0,0.00013997,3]
[330726086,1719739833454,-915.26,0.00013997,3]
[330726087,1719739833470,-500.0,0.00013997,3]
[330726088,1719739833485,-500.0,0.00013997,3]
[330726089,1719739833500,-1042.32,0.00013997,3]
[330726090,1719739833514,-998.6,0.00013997,3]
[330726091,1719739833745,-500.0,0.00013997,3]
[330726092,1719739833758,-975.81,0.00013997,3]
[330726093,1719739833771,-500.0,0.00013997,3]
[330726094,1719739833782,-500.0,0.00013997,3]
[330726095,1719739833794,-500.0,0.00013997,3]
[330726096,1719739833804,-500.0,0.00013997,3]
[330726097,1719739833813,-500.0,0.00013997,3]
[330726098,1719739833823,-880.18,0.00013997,3]
[330726099,1719739833832,-1272.07,0.00013997,3]
[330726100,1719739833842,-500.0,0.00013997,3]
[330726101,1719739833852,-500.0,0.00013997,3]
[330726102,1719739833861,-500.0,0.00013997,2]
[330726103,1719739833871,-500.0,0.00013997,2]
[330726104,1719739833880,-14153.08728546,0.00013997,2]
[330726105,1719739833889,-874.44,0.00013997,3]
[330726106,1719739833899,-500.0,0.00013997,3]
[330726107,1719739833908,-500.0,0.00013997,3]
[330726108,1719739833917,-500.0,0.00013997,3]
[330726109,1719739833927,-500.0,0.00013997,3]
[330726110,1719739833936,-500.0,0.00013997,3]
[330726111,1719739833946,-500.0,0.00013997,3]
[330726112,1719739833955,-500.0,0.00013997,3]
[330726113,1719739833965,-1009.93,0.00013997,3]
[330726114,1719739833974,-500.0,0.00013997,3]
[330726115,1719739833985,-636.63841714,0.00013997,3]
[330726116,1719739833996,-500.0,0.00013997,3]
[330726117,1719739834007,-500.0,0.00013997,3]
[330726118,1719739834016,-500.0,0.00013997,3]
[330726119,1719739834025,-500.0,0.00013997,3]
[330726120,1719739834037,-500.0,0.00013997,3]
[330726121,1719739834048,-500.0,0.00013997,3]
[330726122,1719739834057,-930.74,0.00013997,3]
[330726123,1719739834067,-500.0,0.00013997,3]
[330726124,1719739834078,-500.0,0.00013997,3]
[330726125,1719739834088,-500.0,0.00013997,3]
[330726126,1719739834097,-500.0,0.00013997,3]
[330726127,1719739834107,-500.0,0.00013997,3]
[330726128,1719739834119,-500.0,0.00013997,3]
[330726129,1719739834129,-500.0,0.00013997,3]
[330726130,1719739834138,-500.0,0.00013997,3]
[330726131,1719739834149,-570.30801261,0.00013997,3]
[330726132,1719739834158,-844.21,0.00013997,3]
[330726133,1719739834167,-500.0,0.00013997,3]
[330726134,1719739834177,-500.0,0.00013997,3]
[330726135,1719739834189,-1055.58,0.00013997,3]
[330726136,1719739834200,-500.0,0.00013997,3]
[330726137,1719739834210,-500.0,0.00013997,3]
[330726138,1719739834221,-500.0,0.00013997,3]
[330726139,1719739834231,-500.0,0.00013997,3]
[330726140,1719739834240,-500.0,0.00013997,3]
[330726141,1719739834250,-500.0,0.00013997,3]
[330726142,1719739834260,-1012.78,0.00013997,3]
[330726143,1719739834270,-1092.85,0.00013997,3]
[330726144,1719739834279,-500.0,0.00013997,3]
[330726145,1719739834292,-500.0,0.00013997,3]
[330726146,1719739834302,-500.0,0.00013997,3]
[330726147,1719739834312,-500.0,0.00013997,3]
[330726148,1719739834321,-500.0,0.00013997,3]
[330726149,1719739834331,-500.0,0.00013997,3]
[330726150,1719739834340,-772.45,0.00013997,3]
[330726151,1719739834351,-500.0,0.00013997,3]
[330726152,1719739834361,-500.0,0.00013997,3]
[330726153,1719739834371,-500.0,0.00013997,3]
[330726154,1719739834381,-956.02,0.00013997,3]
[330726155,1719739834391,-500.0,0.00013997,3]
[330726156,1719739834400,-500.0,0.00013997,3]
[330726157,1719739834410,-500.0,0.00013997,3]
[330726158,1719739834420,-510.24,0.00013997,3]
[330726159,1719739834430,-500.0,0.00013997,3]
[330726160,1719739834440,-500.0,0.00013997,3]
[330726161,1719739834450,-500.0,0.00013997,3]
[330726162,1719739834460,-500.0,0.00013997,3]
[330726163,1719739834469,-500.0,0.00013997,3]
[330726164,1719739834478,-500.0,0.00013997,3]
[330726165,1719739834489,-982.79,0.00013997,3]
[330726166,1719739834499,-500.0,0.00013997,3]
[330726167,1719739834508,-1000.0,0.00013997,3]
[330726168,1719739834520,-500.0,0.00013997,3]
[330726169,1719739834532,-500.0,0.00013997,3]
[330726170,1719739834542,-500.0,0.00013997,3]
[330726171,1719739834552,-500.0,0.00013997,3]
[330726172,1719739834562,-1060.32,0.00013997,3]
[330726173,1719739834572,-598.4,0.00013997,3]
[330726174,1719739834581,-538.50024175,0.00013997,3]
[330726175,1719739834591,-500.0,0.00013997,3]
[330726176,1719739834601,-500.0,0.00013997,3]
[330726177,1719739834610,-500.0,0.00013997,3]
[330726178,1719739834620,-500.0,0.00013997,3]
[330726179,1719739834629,-836.82,0.00013997,3]
[330726180,1719739834639,-501.6654877,0.00013997,3]
[330726181,1719739834650,-500.0,0.00013997,3]
[330726182,1719739834660,-500.0,0.00013997,3]
[330726183,1719739834669,-501.65787209,0.00013997,3]
[330726184,1719739834679,-626.27,0.00013997,3]
[330726185,1719739834688,-500.0,0.00013997,3]
[330726186,1719739834698,-500.0,0.00013997,3]
[330726187,1719739834707,-500.0,0.00013997,3]
[330726188,1719739834718,-500.0,0.00013997,3]
[330726189,1719739834728,-501.53834667,0.00013997,3]
[330726190,1719739834738,-154.46854739,0.00013997,3]
[330726191,1719739834748,-500.0,0.00013997,3]
[330726192,1719739834757,-502.25758143,0.00013997,3]
[330726193,1719739834767,-500.0,0.00013997,3]
[330726194,1719739834777,-500.0,0.00013997,3]
[330726195,1719739834787,-502.50456937,0.00013997,3]
[330726196,1719739834796,-308.59181307,0.00013997,3]
[330726197,1719739834806,-500.0,0.00013997,3]
[330726198,1719739834815,-1387.47,0.00013997,3]
[330726199,1719739834825,-768.26,0.00013997,3]
[330726200,1719739834835,-500.0,0.00013997,3]
[330726201,1719739834844,-385.38187598,0.00013997,3]
[330726202,1719739834854,-989.82,0.00013997,3]
[330726203,1719739834864,-501.80450816,0.00013997,3]
[330726204,1719739834873,-764.61,0.00013997,3]
[330726205,1719739834882,-501.52781737,0.00013997,3]
[330726206,1719739834891,-1255.48,0.00013997,3]
[330726207,1719739834901,-654.32,0.00013997,3]
[330726208,1719739834911,-655.33,0.00013997,3]
[330726209,1719739834922,-500.0,0.00013997,3]
[330726210,1719739834932,-501.9489508,0.00013997,3]
[330726211,1719739834941,-501.45607564,0.00013997,3]
[330726212,1719739834951,-719.06,0.00013997,2]
[330726213,1719739834960,-500.0,0.00013997,2]
[330726214,1719739834969,-502.27464001,0.00013997,3]
[330726215,1719739834981,-500.0,0.00013997,3]
[330726216,1719739834991,-500.0,0.00013997,3]
[330726217,1719739835002,-926.08,0.00013997,3]
[330726218,1719739835012,-500.0,0.00013997,3]
[330726219,1719739835022,-500.0,0.00013997,3]
[330726220,1719739835032,-500.0,0.00013997,3]
[330726221,1719739835043,-500.0,0.00013997,3]
[330726222,1719739835053,-500.0,0.00013997,3]
[330726223,1719739835063,-1299.22,0.00013997,3]
[330726224,1719739835072,-500.0,0.00013997,3]
[330726225,1719739835082,-501.4825716,0.00013997,3]
[330726226,1719739835091,-852.63,0.00013997,3]
[330726227,1719739835100,-500.89464894,0.00013997,3]
[330726228,1719739835110,-678.34,0.00013997,3]
[330726229,1719739835119,-500.26903225,0.00013997,3]
[330726230,1719739835129,-505.95400144,0.00013997,3]
[330726231,1719739835138,-708.04,0.00013997,3]
[330726232,1719739835147,-500.0,0.00013997,3]
[330726233,1719739835157,-532.7,0.00013997,3]
[330726234,1719739835166,-501.28501717,0.00013997,3]
[330726235,1719739835175,-1118.16,0.00013997,3]
[330726236,1719739835184,-500.83831173,0.00013997,3]
[330726237,1719739835193,-501.00725424,0.00013997,3]
[330726238,1719739835203,-863.75,0.00013997,3]
[330726239,1719739835212,-500.00209384,0.00013997,3]
[330726240,1719739835222,-841.75,0.00013997,3]
[330726241,1719739835232,-502.1069966,0.00013997,3]
[330726242,1719739835241,-500.0,0.00013997,3]
[330726243,1719739835250,-939.03,0.00013997,3]
[330726244,1719739835259,-503.10788662,0.00013997,3]
[330726245,1719739835268,-500.0,0.00013997,3]
[330726246,1719739835277,-501.68328505,0.00013997,3]
[330726247,1719739835286,-501.48530261,0.00013997,3]
[330726248,1719739835298,-504.96711037,0.00013997,3]
[330726249,1719739835308,-500.0,0.00013997,3]
[330726250,1719739835317,-500.0,0.00013997,3]
[330726251,1719739835326,-500.0,0.00013997,3]
[330726252,1719739835335,-731.89,0.00013997,3]
[330726253,1719739835344,-500.0,0.00013997,3]
[330726254,1719739835354,-632.37,0.00013997,3]
[330726255,1719739835364,-500.0,0.00013997,3]
[330726256,1719739835373,-500.0,0.00013997,3]
[330726257,1719739835382,-500.0,0.00013997,3]
[330726258,1719739835391,-594.83,0.00013997,3]
[330726259,1719739835401,-501.94914379,0.00013997,3]
[330726260,1719739835410,-500.0,0.00013997,3]
[330726261,1719739835419,-548.48318477,0.00013997,3]
[330726262,1719739835429,-500.0,0.00013997,3]
[330726263,1719739835438,-500.0,0.00013997,3]
[330726264,1719739835448,-501.24287593,0.00013997,3]
[330726265,1719739835458,-500.0,0.00013997,3]
[330726266,1719739835467,-500.0,0.00013997,3]
[330726267,1719739835477,-502.51345599,0.00013997,3]
[330726268,1719739835487,-500.0,0.00013997,3]
[330726269,1719739835497,-500.0,0.00013997,3]
[330726270,1719739835507,-500.0,0.00013997,3]
[330726271,1719739835519,-500.21,0.00013997,3]
[330726272,1719739835533,-1180.32,0.00013997,3]
[330726273,1719739835543,-500.19345156,0.00013997,3]
[330726274,1719739835553,-1788.46,0.00013997,3]
[330726275,1719739835563,-528.01512575,0.00013997,3]
[330726276,1719739835573,-500.0,0.00013997,3]
[330726277,1719739835582,-500.0,0.00013997,3]
[330726278,1719739835592,-500.0,0.00013997,3]
[330726279,1719739835603,-501.60661818,0.00013997,3]
[330726280,1719739835613,-468.11212295,0.00013997,3]
[330726281,1719739835623,-500.0,0.00013997,3]
[330726282,1719739835634,-984.65,0.00013997,3]
[330726283,1719739835645,-1435.0,0.00013997,3]
[330726284,1719739835654,-500.0,0.00013997,3]
[330726285,1719739835664,-500.0,0.00013997,3]
[330726286,1719739835674,-1987.89,0.00013997,3]
[330726287,1719739835683,-500.0,0.00013997,3]
[330726288,1719739835693,-574.11663846,0.00013997,3]
[330726289,1719739835702,-643.52,0.00013997,3]
[330726290,1719739835712,-500.0,0.00013997,3]
[330726291,1719739835722,-462.06354793,0.00013997,3]
[330726292,1719739835731,-1971.06,0.00013997,3]
[330726293,1719739835741,-1273.29,0.00013997,3]
[330726294,1719739835750,-570.93433154,0.00013997,3]
[330726295,1719739835760,-1111.01,0.00013997,3]
[330726296,1719739835769,-694.74,0.00013997,3]
[330726297,1719739835779,-500.0,0.00013997,3]
[330726298,1719739835788,-500.0,0.00013997,3]
[330726299,1719739835798,-501.44975039,0.00013997,3]
[330726300,1719739835808,-500.0,0.00013997,3]
[330726301,1719739835817,-1262.95,0.00013997,3]
[330726302,1719739835827,-500.0,0.00013997,3]
[330726303,1719739835836,-500.0,0.00013997,3]
[330726304,1719739835846,-1016.39,0.00013997,2]
[330726305,1719739835855,-500.0,0.00013997,3]
[330726306,1719739835999,-1030.87,0.00013997,3]
[330726307,1719739836009,-500.0,0.00013997,3]
[330726308,1719739836018,-500.0,0.00013997,3]
[330726309,1719739836027,-500.0,0.00013997,3]
[330726310,1719739836037,-930.51,0.00013997,3]
[330726311,1719739836047,-1571.79,0.00013997,3]
[330726312,1719739836057,-500.0,0.00013997,3]
[330726313,1719739836066,-928.02,0.00013997,3]
[330726314,1719739836077,-500.0,0.00013997,3]
[330726315,1719739836088,-1052.84,0.00013997,3]
[330726316,1719739836098,-500.0,0.00013997,3]
[330726317,1719739836109,-794.74,0.00013997,3]
[330726318,1719739836118,-500.0,0.00013997,3]
[330726319,1719739836128,-662.31,0.00013997,3]
[330726320,1719739836138,-500.0,0.00013997,3]
[330726321,1719739836149,-1918.03,0.00013997,3]
[330726322,1719739836161,-500.0,0.00013997,3]
[330726323,1719739836171,-500.0,0.00013997,3]
[330726324,1719739836181,-500.0,0.00013997,3]
[330726325,1719739836191,-500.0,0.00013997,3]
[330726326,1719739836201,-500.0,0.00013997,3]
[330726327,1719739836211,-500.0,0.00013997,3]
[330726328,1719739836220,-500.0,0.00013997,3]
[330726329,1719739836231,-500.0,0.00013997,3]
[330726330,1719739836242,-1025.86,0.00013997,3]
[330726331,1719739836252,-500.0,0.00013997,3]
[330726332,1719739836261,-1310.38,0.00013997,3]
[330726333,1719739836271,-500.0,0.00013997,3]
[330726334,1719739836281,-500.0,0.00013997,3]
[330726335,1719739836292,-1401.97,0.00013997,3]
[330726336,1719739836302,-155.84880036,0.00013997,3]
[330726337,1719739836311,-500.0,0.00013997,3]
[330726338,1719739836321,-1235.75,0.00013997,3]
[330726339,1719739836331,-1604.29,0.00013997,3]
[330726340,1719739836341,-580.77,0.00013997,3]
[330726341,1719739836352,-500.0,0.00013997,3]
[330726342,1719739836363,-500.0,0.00013997,3]
[330726343,1719739836373,-2871.67,0.00013997,3]
[330726344,1719739836382,-500.0,0.00013997,3]
[330726345,1719739836392,-873.51,0.00013997,3]
[330726346,1719739836401,-500.0,0.00013997,3]
[330726347,1719739836410,-500.0,0.00013997,3]
[330726348,1719739836419,-500.0,0.00013997,3]
[330726349,1719739836429,-818.52,0.00013997,3]
[330726350,1719739836438,-500.0,0.00013997,3]
[330726351,1719739836448,-500.0,0.00013997,3]
[330726352,1719739836457,-893.56,0.00013997,3]
[330726353,1719739836466,-718.28,0.00013997,3]
[330726354,1719739836475,-500.0,0.00013997,3]
[330726355,1719739836485,-500.0,0.00013997,3]
[330726356,1719739836494,-500.0,0.00013997,3]
[330726357,1719739836503,-1027.1,0.00013997,3]
[330726358,1719739836512,-500.0,0.00013997,3]
[330726359,1719739836524,-2761.6,0.00013997,3]
[330726360,1719739836535,-1108.92,0.00013997,3]
[330726361,1719739836547,-724.22,0.00013997,3]
[330726362,1719739836557,-500.0,0.00013997,3]
[330726363,1719739836566,-841.66,0.00013997,3]
[330726364,1719739836579,-500.0,0.00013997,3]
[330726365,1719739836588,-1145.26,0.00013997,3]
[330726366,1719739836600,-500.0,0.00013997,3]
[330726367,1719739836609,-1114.9,0.00013997,3]
[330726368,1719739836618,-525.34,0.00013997,3]
[330726369,1719739836627,-1467.54,0.00013997,3]
[330726370,1719739836638,-500.0,0.00013997,3]
[330726371,1719739836648,-500.0,0.00013997,3]
[330726372,1719739836659,-500.0,0.00013997,3]
[330726373,1719739836668,-1210.62,0.00013997,3]
[330726374,1719739836679,-500.0,0.00013997,3]
[330726375,1719739836688,-2167.62,0.00013997,3]
[330726376,1719739836698,-500.0,0.00013997,3]
[330726377,1719739836708,-944.14,0.00013997,3]
[330726378,1719739836717,-500.0,0.00013997,3]
[330726379,1719739836727,-555.27,0.00013997,3]
[330726380,1719739836736,-500.0,0.00013997,3]
[330726381,1719739836746,-613.12,0.00013997,3]
[330726382,1719739836756,-500.0,0.00013997,3]
[330726383,1719739836765,-500.0,0.00013997,3]
[330726384,1719739836775,-500.0,0.00013997,3]
[330726385,1719739836786,-500.0,0.00013997,3]
[330726386,1719739836799,-1138.91,0.00013997,3]
[330726387,1719739836808,-500.0,0.00013997,3]
[330726388,1719739836817,-689.68,0.00013997,3]
[330726389,1719739836826,-500.0,0.00013997,3]
[330726390,1719739836835,-500.0,0.00013997,3]
[330726391,1719739836845,-1342.37,0.00013997,3]
[330726392,1719739836854,-500.0,0.00013997,3]
[330726393,1719739836863,-500.0,0.00013997,3]
[330726394,1719739836873,-1207.08,0.00013997,3]
[330726395,1719739836882,-1323.29,0.00013997,3]
[330726396,1719739836892,-500.0,0.00013997,3]
[330726397,1719739836901,-500.0,0.00013997,3]
[330726398,1719739836911,-1116.79,0.00013997,3]
[330726399,1719739836920,-500.0,0.00013997,3]
[330726400,1719739836930,-799.39,0.00013997,3]
[330726401,1719739836939,-500.0,0.00013997,3]
[330726402,1719739836950,-500.0,0.00013997,3]
[330726403,1719739836960,-500.0,0.00013997,3]
[330726404,1719739836970,-500.0,0.00013997,3]
[330726405,1719739836980,-500.0,0.00013997,3]
[330726406,1719739836990,-500.0,0.00013997,3]
[330726407,1719739836999,-1325.73,0.00013997,3]
[330726408,1719739837008,-500.0,0.00013997,3]
[330726409,1719739837018,-1107.58,0.00013997,3]
[330726410,1719739837027,-500.0,0.00013997,3]
[330726411,1719739837037,-500.0,0.00013997,3]
[330726412,1719739837052,-500.0,0.00013997,3]
[330726413,1719739837062,-500.0,0.00013997,3]
[330726414,1719739837071,-500.0,0.00013997,3]
[330726415,1719739837081,-500.0,0.00013997,3]
[330726416,1719739837091,-835.89,0.00013997,3]
[330726417,1719739837101,-500.0,0.00013997,3]
[330726418,1719739837110,-511.87,0.00013997,3]
[330726419,1719739837120,-996.84,0.00013997,3]
[330726420,1719739837129,-500.0,0.00013997,3]
[330726421,1719739837139,-781.58,0.00013997,3]
[330726422,1719739837148,-500.0,0.00013997,3]
[330726423,1719739837157,-231.94527542,0.00013997,3]
[330726424,1719739837167,-500.0,0.00013997,3]
[330726425,1719739837177,-1032.68,0.00013997,3]
[330726426,1719739837187,-500.0,0.00013997,3]
[330726427,1719739837196,-500.0,0.00013997,3]
[330726428,1719739837206,-500.0,0.00013998,3]
[330726429,1719739837216,-500.45552702,0.00013998,3]
[330726430,1719739837225,-500.0,0.00013998,3]
[330726431,1719739837235,-500.0,0.00013998,3]
[330726432,1719739837245,-500.0,0.00013998,3]
[330726433,1719739837254,-500.0,0.00013998,3]
[330726434,1719739837264,-500.0,0.00013998,3]
[330726435,1719739837273,-500.0,0.00013998,3]
[330726436,1719739837283,-500.0,0.00013998,3]
[330726437,1719739837293,-500.0,0.00013998,3]
[330726438,1719739837302,-200.0,0.00013998,3]
[330726439,1719739837311,-500.0,0.00013998,3]
[330726440,1719739837320,-500.0,0.00013998,3]
[330726441,1719739837330,-556.69722106,0.00013998,3]
[330726442,1719739837339,-500.0,0.00013998,3]
[330726443,1719739837348,-500.0,0.00013998,3]
[330726444,1719739837358,-500.0,0.00013998,3]
[330726445,1719739837369,-500.0,0.00013998,3]
[330726446,1719739837378,-500.0,0.00013998,3]
[330726447,1719739837388,-500.0,0.00013998,3]
[330726448,1719739837398,-500.0,0.00013998,3]
[330726449,1719739837407,-500.0,0.00013998,3]
[330726450,1719739837417,-500.0,0.00013998,3]
[330726451,1719739837426,-500.0,0.00013998,3]
[330726452,1719739837438,-500.0,0.00013998,3]
[330726453,1719739837447,-500.0,0.00013998,3]
[330726454,1719739837457,-500.0,0.00013998,3]
[330726455,1719739837469,-500.0,0.00013998,3]
[330726456,1719739837479,-500.0,0.00013998,3]
[330726457,1719739837488,-500.0,0.00013998,3]
[330726458,1719739837498,-500.0,0.00013998,3]
[330726459,1719739837508,-500.0,0.00013998,3]
[330726460,1719739837519,-500.0,0.00013998,3]
[330726461,1719739837534,-161.94383451,0.00013998,3]
[330726462,1719739837546,-500.0,0.00013998,3]
[330726463,1719739837556,-500.0,0.00013998,3]
[330726464,1719739837567,-500.0,0.00013998,3]
[330726465,1719739837578,-154.84384914,0.00013998,3]
[330726466,1719739837588,-500.0,0.00013998,3]
[330726467,1719739837598,-500.0,0.00013998,3]
[330726468,1719739837612,-500.0,0.00013998,3]
[330726469,1719739837623,-500.0,0.00013998,3]
[330726470,1719739837632,-500.0,0.00013998,3]
[330726471,1719739837642,-500.0,0.00013998,3]
[330726472,1719739837652,-500.0,0.00013998,3]
[330726473,1719739837662,-500.0,0.00013998,3]
[330726474,1719739837672,-500.0,0.00013998,3]
[330726475,1719739837682,-500.0,0.00013998,3]
[330726476,1719739837692,-500.0,0.00013998,3]
[330726477,1719739837702,-500.64775422,0.00013998,3]
[330726478,1719739837711,-500.0,0.00013998,3]
[330726479,1719739837721,-500.0,0.00013998,3]
[330726480,1719739837731,-500.0,0.00013998,3]
[330726481,1719739837741,-500.0,0.00013998,3]
[330726482,1719739837750,-500.0,0.00013998,3]
[330726483,1719739837760,-500.0,0.00013998,3]
[330726484,1719739837769,-500.0,0.00013998,3]
[330726485,1719739837778,-500.0,0.00013998,3]
[330726486,1719739837788,-500.0,0.00013998,3]
[330726487,1719739837798,-500.0,0.00013998,3]
[330726488,1719739837808,-500.0,0.00013998,3]
[330726489,1719739837817,-500.0,0.00013998,3]
[330726490,1719739837827,-500.0,0.00013998,3]
[330726491,1719739837837,-500.0,0.00013998,3]
[330726492,1719739837846,-500.0,0.00013998,3]
[330726493,1719739837856,-741.28,0.00013998,3]
[330726495,1719739837866,-500.0,0.00013998,3]
[330726496,1719739837875,-500.0,0.00013998,3]
[330726497,1719739837885,-500.0,0.00013998,3]
[330726498,1719739837895,-500.0,0.00013998,3]
[330726499,1719739837905,-500.67109187,0.00013998,3]
[330726500,1719739837915,-500.0,0.00013998,3]
[330726501,1719739837924,-500.0,0.00013998,3]
[330726502,1719739837934,-910.62,0.00013998,3]
[330726503,1719739837944,-625.92,0.00013998,3]
[330726505,1719739837953,-500.0,0.00013998,3]
[330726507,1719739837963,-500.0,0.00013998,3]
[330726508,1719739838107,-500.0,0.00013998,3]
[330726509,1719739838117,-500.0,0.00013998,3]
[330726510,1719739838127,-500.0,0.00013998,3]
[330726511,1719739838136,-500.0,0.00013998,3]
[330726512,1719739838146,-500.0,0.00013998,3]
[330726513,1719739838156,-500.0,0.00013998,3]
[330726514,1719739838166,-500.0,0.00013998,3]
[330726515,1719739838176,-500.0,0.00013998,3]
[330726516,1719739838185,-500.0,0.00013998,3]
[330726517,1719739838195,-500.0,0.00013998,3]
[330726518,1719739838204,-500.0,0.00013998,3]
[330726519,1719739838214,-500.0,0.00013998,3]
[330726520,1719739838223,-500.0,0.00013998,3]
[330726521,1719739838232,-500.0,0.00013998,3]
[330726522,1719739838242,-502.37222694,0.00013998,3]
[330726523,1719739838253,-500.0,0.00013998,3]
[330726524,1719739838262,-500.0,0.00013998,3]
[330726525,1719739838271,-500.0,0.00013998,3]
[330726526,1719739838280,-194.3763597,0.00013998,3]
[330726527,1719739838290,-500.0,0.00013998,3]
[330726528,1719739838301,-2500.0,0.00013998,3]
[330726529,1719739838310,-581.11,0.00013998,3]
[330726530,1719739838320,-500.0,0.00013998,3]
[330726531,1719739838330,-500.0,0.00013998,3]
[330726532,1719739838340,-500.0,0.00013998,3]
[330726533,1719739838349,-500.0,0.00013998,3]
[330726534,1719739838360,-500.0,0.00013998,3]
[330726535,1719739838370,-500.0,0.00013998,3]
[330726536,1719739838379,-500.0,0.00013998,3]
[330726537,1719739838389,-500.0,0.00013998,3]
[330726538,1719739838400,-500.0,0.00013998,3]
[330726539,1719739838410,-500.0,0.00013998,3]
[330726540,1719739838420,-500.0,0.00013998,3]
[330726541,1719739838430,-500.0,0.00013998,3]
[330726542,1719739838439,-500.0,0.00013998,3]
[330726543,1719739838449,-500.0,0.00013998,3]
[330726544,1719739838459,-500.0,0.00013998,3]
[330726545,1719739838469,-500.0,0.00013998,3]
[330726546,1719739838479,-5042.73023274,0.00013998,3]
[330726547,1719739838489,-500.0,0.00013998,3]
[330726548,1719739838499,-500.0,0.00013998,3]
[330726549,1719739838509,-649.92,0.00013998,3]
[330726550,1719739838519,-500.0,0.00013998,3]
[330726551,1719739838534,-560.24,0.00013998,3]
[330726552,1719739838545,-500.0,0.00013998,3]
[330726553,1719739838554,-500.0,0.00013998,3]
[330726554,1719739838564,-500.0,0.00013998,3]
[330726555,1719739838575,-500.0,0.00013998,3]
[330726556,1719739838584,-500.0,0.00013998,3]
[330726557,1719739838594,-500.0,0.00013998,3]
[330726558,1719739838607,-500.0,0.00013998,3]
[330726559,1719739838617,-500.0,0.00013998,3]
[330726560,1719739838627,-500.0,0.00013998,3]
[330726561,1719739838638,-500.0,0.00013998,3]
[330726562,1719739838648,-500.0,0.00013998,3]
[330726563,1719739838658,-500.0,0.00013998,3]
[330726564,1719739838668,-500.0,0.00013998,3]
[330726565,1719739838678,-500.0,0.00013998,3]
[330726566,1719739838688,-500.0,0.00013998,3]